fUST/lending_fUST_20240113
["ID","MTS","AMOUNT","RATE_DAILY","PERIOD"]
[311395195,1705077038889,-619.59194232,0.00021917,2]
[311395197,1705077038898,-500.0,0.00021917,2]
[311395198,1705077038907,-500.0,0.00021917,2]
[311395200,1705077038917,-504.32486855,0.00021917,2]
[311395202,1705077038926,-500.0,0.00021917,2]
[311395205,1705077038936,-500.0,0.00021917,2]
[311395206,1705077038945,-500.0,0.00021917,2]
[311395209,1705077038955,-500.0,0.00021917,2]
[311395211,1705077038964,-500.0,0.00021917,2]
[311395213,1705077038974,-500.0,0.00021917,2]
[311395215,1705077038983,-500.0,0.00021917,2]
[311395226,1705077039080,-500.0,0.00021917,2]
[311395228,1705077039093,-444.97661268,0.00021917,2]
[311395230,1705077039103,-500.0,0.00021917,2]
[311395232,1705077039116,-500.0,0.00021917,2]
[311395234,1705077039126,-500.0,0.00021917,2]
[311395235,1705077039137,-500.0,0.00021917,2]
[311395237,1705077039147,-500.0,0.00021917,2]
[311395240,1705077039156,-502.17596394,0.00021917,2]
[311395243,1705077039167,-352.34600322,0.00021917,2]
[311395246,1705077039176,-500.0,0.00021917,2]
[311395248,1705077039187,-500.0,0.00021917,2]
[311395250,1705077039196,-500.0,0.00021917,2]
[311395252,1705077039206,-500.0,0.00021917,2]
[311395254,1705077039215,-500.0,0.00021917,2]
[311395256,1705077039225,-500.0,0.00021917,2]
[311395258,1705077039236,-30.5662286,0.00021917,2]
[311395261,1705077039250,-469.4337714,0.00021917,2]
[311395263,1705077039260,-500.0,0.00021917,2]
[311395265,1705077039269,-500.0,0.00021917,2]
[311395267,1705077039278,-500.0,0.00021917,2]
[311395269,1705077039288,-500.0,0.00021917,2]
[311395270,1705077039298,-500.0,0.00021917,2]
[311395271,1705077039307,-500.0,0.00021917,2]
[311395272,1705077039316,-500.0,0.00021917,2]
[311395273,1705077039326,-500.0,0.00021917,2]
[311395274,1705077039336,-516.84449583,0.00021917,2]
[311395275,1705077039346,-605.14027275,0.00021917,2]
[311395276,1705077039357,-500.0,0.00021917,2]
[311395277,1705077039366,-500.0,0.00021917,2]
[311395278,1705077039376,-500.0,0.00021917,2]
[311395279,1705077039389,-500.0,0.00021917,2]
[311395280,1705077039400,-502.00356295,0.00021917,2]
[311395281,1705077039409,-500.0,0.00021917,2]
[311395282,1705077039419,-200.23172933,0.00021917,2]
[311395283,1705077039429,-500.0,0.00021917,2]
[311395284,1705077039440,-500.0,0.00021917,2]
[311395286,1705077039454,-500.0,0.00021917,2]
[311395288,1705077039464,-500.0,0.00021917,2]
[311395290,1705077039475,-500.0,0.00021917,2]
[311395292,1705077039486,-278.63115489,0.00021917,2]
[311395294,1705077039497,-500.0,0.00021917,2]
[311395296,1705077039507,-500.0,0.00021917,2]
[311395298,1705077039517,-500.0,0.00021917,2]
[311395300,1705077039526,-500.0,0.00021917,2]
[311395302,1705077039536,-500.0,0.00021917,2]
[311395304,1705077039546,-500.0,0.00021917,2]
[311395306,1705077039555,-500.0,0.00021917,2]
[311395308,1705077039564,-500.0,0.00021917,2]
[311395310,1705077039574,-500.0,0.00021917,2]
[311395312,1705077039584,-579.01830516,0.00021917,2]
[311395314,1705077039594,-500.0,0.00021917,2]
[311395316,1705077039605,-500.0,0.00021917,2]
[311395318,1705077039615,-500.0,0.00021917,2]
[311395320,1705077039625,-500.0,0.00021917,2]
[311395322,1705077039638,-500.0,0.00021917,2]
[311395324,1705077039648,-500.0,0.00021917,2]
[311395326,1705077039659,-500.0,0.00021917,2]
[311395328,1705077039669,-500.0,0.00021917,2]
[311395330,1705077039679,-500.0,0.00021917,2]
[311395332,1705077039690,-500.0,0.00021917,2]
[311395334,1705077039701,-500.0,0.00021917,2]
[311395336,1705077039710,-500.0,0.00021917,2]
[311395338,1705077039720,-500.0,0.00021917,2]
[311395339,1705077039731,-500.0,0.00021917,2]
[311395342,1705077039741,-500.0,0.00021917,2]
[311395343,1705077039751,-500.0,0.00021917,2]
[311395346,1705077039762,-500.0,0.00021917,2]
[311395348,1705077039773,-500.0,0.00021917,2]
[311395350,1705077039783,-500.0,0.00021917,2]
[311395351,1705077039793,-500.0,0.00021917,2]
[311395353,1705077039803,-616.66,0.00021917,2]
[311395355,1705077039813,-500.0,0.00021917,2]
[311395358,1705077039823,-500.0,0.00021917,2]
[311395360,1705077039832,-500.0,0.00021917,2]
[311395362,1705077039843,-500.18775545,0.00021917,2]
[311395363,1705077039854,-500.0,0.00021917,2]
[311395365,1705077039864,-500.0,0.00021917,2]
[311395368,1705077039874,-500.0,0.00021917,2]
[311395371,1705077039883,-500.0,0.00021917,2]
[311395374,1705077039893,-500.0,0.00021917,2]
[311395375,1705077039902,-500.0,0.00021917,2]
[311395377,1705077039911,-154.8915759,0.00021917,2]
[311395380,1705077039921,-500.0,0.00021917,2]
[311395382,1705077039931,-500.0,0.00021917,2]
[311395384,1705077039940,-500.0,0.00021917,2]
[311395386,1705077039950,-500.0,0.00021917,2]
[311395388,1705077039960,-500.0,0.00021917,2]
[311395390,1705077039969,-501.04881179,0.00021917,2]
[311395392,1705077039978,-500.0,0.00021917,2]
[311395394,1705077039988,-500.0,0.00021917,2]
[311395396,1705077039997,-500.0,0.00021917,2]
[311395398,1705077040006,-500.0,0.00021917,2]
[311395400,1705077040015,-500.0,0.00021917,2]
[311395401,1705077040024,-500.0,0.00021917,2]
[311395404,1705077040033,-500.0,0.00021917,2]
[311395406,1705077040043,-500.0,0.00021917,2]
[311395408,1705077040052,-500.0,0.00021917,2]
[311395410,1705077040061,-323.28,0.00021917,2]
[311395412,1705077040071,-500.0,0.00021917,2]
[311395414,1705077040080,-700.41,0.00021917,2]
[311395416,1705077040089,-500.0,0.00021917,2]
[311395418,1705077040098,-500.0,0.00021917,2]
[311395420,1705077040107,-500.0,0.00021917,2]
[311395422,1705077040116,-500.49527847,0.00021917,2]
[311395424,1705077040125,-601.70361142,0.00021917,2]
[311395426,1705077040137,-500.0,0.00021917,2]
[311395428,1705077040146,-500.0,0.00021917,2]
[311395430,1705077040156,-536.48,0.00021917,2]
[311395432,1705077040165,-500.0,0.00021917,2]
[311395434,1705077040174,-500.0,0.00021917,2]
[311395436,1705077040183,-501.77134193,0.00021917,2]
[311395438,1705077040192,-500.0,0.00021917,2]
[311395440,1705077040202,-500.0,0.00021917,2]
[311395442,1705077040211,-500.0,0.00021917,2]
[311395444,1705077040221,-500.0,0.00021917,2]
[311395446,1705077040230,-500.0,0.00021917,2]
[311395448,1705077040239,-500.0,0.00021917,2]
[311395450,1705077040249,-313.77737342,0.00021917,2]
[311395452,1705077040259,-265.0895561,0.00021917,2]
[311395454,1705077040268,-500.0,0.00021917,2]
[311395456,1705077040277,-2926.2,0.00021917,2]
[311395458,1705077040286,-500.0,0.00021917,2]
[311395460,1705077040295,-221.60693702,0.00021917,2]
[311395461,1705077040303,-500.0,0.00021917,2]
[311395464,1705077040313,-500.0,0.00021917,2]
[311395466,1705077040323,-500.0,0.00021917,2]
[311395468,1705077040333,-500.0,0.00021917,2]
[311395469,1705077040342,-1082.8,0.00021917,2]
[311395472,1705077040351,-580.37,0.00021917,2]
[311395473,1705077040361,-500.0,0.00021917,2]
[311395475,1705077040370,-500.0,0.00021917,2]
[311395477,1705077040380,-500.0,0.00021917,2]
[311395479,1705077040391,-505.44493024,0.00021917,2]
[311395481,1705077040401,-500.0,0.00021917,2]
[311395484,1705077040410,-1000.0,0.00021917,2]
[311395486,1705077040420,-6480.9,0.00021917,2]
[311395488,1705077040429,-500.0,0.00021917,2]
[311395490,1705077040438,-297.81780328,0.00021917,2]
[311395491,1705077040448,-500.0,0.00021917,2]
[311395493,1705077040458,-500.0,0.00021917,2]
[311395496,1705077040468,-500.0,0.00021917,2]
[311395497,1705077040479,-500.0,0.00021917,2]
[311395499,1705077040491,-500.0,0.00021917,2]
[311395501,1705077040502,-635.53581168,0.00021917,2]
[311395503,1705077040512,-166.666666,0.00021918,2]
[311395506,1705077040522,-425.12426258,0.00022,2]
[311395508,1705077040532,-500.0,0.0002209,2]
[311395510,1705077040545,-480.14482621,0.00022091,2]
[311395512,1705077040555,-155.08594613,0.0002219,2]
[311395514,1705077040565,-500.0,0.00022191,2]
[311395516,1705077040576,-500.0,0.00022191,2]
[311395518,1705077040585,-500.0,0.00022191,2]
[311395520,1705077040595,-502.48431119,0.00022191,2]
[311395522,1705077040604,-527.90013105,0.00022191,2]
[311395524,1705077040613,-500.0,0.00022191,2]
[311395526,1705077040623,-500.0,0.00022191,2]
[311395528,1705077040631,-500.0,0.00022191,2]
[311395530,1705077040643,-500.0,0.00022191,2]
[311395532,1705077040652,-500.0,0.00022191,2]
[311395534,1705077040661,-500.0,0.00022191,2]
[311395536,1705077040669,-504.20120448,0.00022191,2]
[311395538,1705077040678,-500.0,0.00022191,2]
[311395539,1705077040687,-500.0,0.00022191,2]
[311395541,1705077040696,-500.0,0.00022191,2]
[311395543,1705077040705,-500.0,0.00022191,2]
[311395546,1705077040714,-627.0811371,0.00022191,2]
[311395547,1705077040724,-500.0,0.00022191,2]
[311395549,1705077040733,-500.0,0.00022191,2]
[311395552,1705077040742,-500.0,0.00022191,2]
[311395553,1705077040752,-500.0,0.00022191,2]
[311395555,1705077040763,-500.0,0.00022191,2]
[311395558,1705077040781,-500.0,0.00022191,2]
[311395560,1705077040792,-500.0,0.00022191,2]
[311395562,1705077040801,-500.0,0.00022191,2]
[311395563,1705077040811,-500.0,0.00022191,2]
[311395566,1705077040820,-500.0,0.00022191,2]
[311395568,1705077040830,-501.07304667,0.00022191,2]
[311395570,1705077040840,-500.0,0.00022191,2]
[311395572,1705077040850,-500.0,0.00022191,2]
[311395573,1705077040859,-500.0,0.00022191,2]
[311395575,1705077040868,-500.0,0.00022191,2]
[311395577,1705077040878,-500.0,0.00022191,2]
[311395579,1705077040888,-500.0,0.00022191,2]
[311395582,1705077040900,-621.30815184,0.00022191,2]
[311395583,1705077040909,-500.0,0.00022191,2]
[311395585,1705077040919,-500.0,0.00022191,2]
[311395588,1705077040928,-500.0,0.00022191,2]
[311395589,1705077040938,-500.0,0.00022191,2]
[311395591,1705077040948,-534.86153431,0.00022191,2]
[311395594,1705077040958,-500.0,0.00022191,2]
[311395596,1705077040967,-500.0,0.00022191,2]
[311395598,1705077040976,-500.0,0.00022191,2]
[311395600,1705077040984,-500.0,0.00022191,2]
[311395601,1705077040994,-500.0,0.00022191,2]
[311395604,1705077041004,-616.66,0.00022191,2]
[311395605,1705077041012,-518.16143272,0.00022191,2]
[311395607,1705077041022,-500.0,0.00022191,2]
[311395609,1705077041031,-500.0,0.00022191,2]
[311395611,1705077041040,-500.73987157,0.00022191,2]
[311395613,1705077041049,-500.0,0.00022191,2]
[311395615,1705077041058,-500.0,0.00022191,2]
[311395617,1705077041068,-500.0,0.00022191,2]
[311395619,1705077041077,-500.0,0.00022191,2]
[311395621,1705077041086,-165.5381675,0.00022191,2]
[311395623,1705077041096,-500.0,0.00022191,2]
[311395625,1705077041105,-465.78510027,0.00022191,2]
[311395627,1705077041114,-700.41,0.00022191,2]
[311395629,1705077041123,-184.13370995,0.00022191,2]
[311395631,1705077041132,-500.0,0.00022191,2]
[311395633,1705077041142,-536.48,0.00022191,2]
[311395635,1705077041151,-500.0,0.00022191,2]
[311395637,1705077041160,-500.0,0.00022191,2]
[311395639,1705077041170,-500.0,0.00022191,2]
[311395641,1705077041179,-500.0,0.00022191,2]
[311395643,1705077041188,-500.0,0.00022191,2]
[311395645,1705077041198,-500.0,0.00022191,2]
[311395647,1705077041207,-500.0,0.00022191,2]
[311395649,1705077041216,-500.0,0.00022191,2]
[311395651,1705077041225,-2926.2,0.00022191,2]
[311395653,1705077041234,-500.0,0.00022191,2]
[311395656,1705077041244,-509.39293328,0.00022191,2]
[311395657,1705077041253,-500.0,0.00022191,2]
[311395659,1705077041263,-504.95877048,0.00022191,2]
[311395670,1705077041272,-1082.8,0.00022191,2]
[311395673,1705077041367,-580.37,0.00022191,2]
[311395675,1705077041376,-500.0,0.00022191,2]
[311395677,1705077041386,-588.46,0.00022191,2]
[311395679,1705077041395,-6480.9,0.00022191,2]
[311395681,1705077041404,-400.39717133,0.00022191,2]
[311395683,1705077041414,-500.0,0.00022191,2]
[311395685,1705077041423,-470.02436775,0.00022191,2]
[311395687,1705077041431,-500.0,0.00022191,2]
[311395689,1705077041440,-500.0,0.00022191,2]
[311395690,1705077041450,-166.666666,0.00022431,2]
[311395693,1705077041460,-200.17361707,0.00022464,2]
[311395695,1705077041471,-500.0,0.00022464,2]
[311395696,1705077041481,-500.0,0.00022464,2]
[311395698,1705077041491,-500.0,0.00022464,2]
[311395700,1705077041500,-500.0,0.00022464,2]
[311395702,1705077041510,-500.0,0.00022464,2]
[311395704,1705077041519,-500.0,0.00022464,2]
[311395707,1705077041530,-500.0,0.00022464,2]
[311395708,1705077041539,-500.0,0.00022464,2]
[311395711,1705077041550,-500.0,0.00022464,2]
[311395713,1705077041563,-500.0,0.00022464,2]
[311395715,1705077041574,-500.0,0.00022464,2]
[311395717,1705077041584,-500.0,0.00022464,2]
[311395719,1705077041597,-1131.75,0.00022464,2]
[311395721,1705077041608,-500.0,0.00022464,2]
[311395723,1705077041618,-500.0,0.00022464,2]
[311395725,1705077041627,-500.0,0.00022464,2]
[311395727,1705077041638,-500.0,0.00022464,2]
[311395729,1705077041649,-286.77903007,0.00022464,2]
[311395731,1705077041659,-500.0,0.00022464,2]
[311395733,1705077041669,-500.0,0.00022464,2]
[311395735,1705077041679,-504.3,0.00022464,2]
[311395737,1705077041688,-437.01491593,0.00022464,2]
[311395739,1705077041698,-502.88239032,0.00022464,2]
[311395741,1705077041708,-500.0,0.00022464,2]
[311395743,1705077041718,-562.58,0.00022464,2]
[311395745,1705077041728,-500.0,0.00022464,2]
[311395747,1705077041739,-500.0,0.00022464,2]
[311395749,1705077041748,-500.0,0.00022464,2]
[311395751,1705077041758,-500.0,0.00022464,2]
[311395753,1705077041768,-500.0,0.00022464,2]
[311395755,1705077041778,-500.0,0.00022464,2]
[311395757,1705077041788,-500.0,0.00022464,2]
[311395759,1705077041798,-500.0,0.00022465,2]
[311395761,1705077041808,-500.0,0.00022465,2]
[311395763,1705077041817,-500.0,0.00022465,2]
[311395765,1705077041828,-500.0,0.00022465,2]
[311395767,1705077041838,-500.0,0.00022465,2]
[311395769,1705077041849,-500.0,0.00022465,2]
[311395771,1705077041858,-500.0,0.00022465,2]
[311395773,1705077041867,-500.0,0.00022465,2]
[311395775,1705077041877,-500.0,0.00022465,2]
[311395777,1705077041887,-500.0,0.00022465,2]
[311395779,1705077041897,-486.77072508,0.00022465,2]
[311395781,1705077041906,-500.0,0.00022465,2]
[311395783,1705077041915,-500.0,0.00022465,2]
[311395785,1705077041924,-500.0,0.00022465,2]
[311395787,1705077041933,-493.90003531,0.00022465,2]
[311395789,1705077041945,-500.0,0.00022465,2]
[311395791,1705077041954,-500.0,0.00022465,2]
[311395793,1705077041964,-500.0,0.00022465,2]
[311395795,1705077041973,-500.0,0.00022465,2]
[311395797,1705077041983,-500.0,0.00022465,2]
[311395799,1705077041993,-500.0,0.00022465,2]
[311395801,1705077042002,-616.66,0.00022465,2]
[311395803,1705077042011,-505.35033029,0.00022465,2]
[311395805,1705077042020,-500.0,0.00022465,2]
[311395807,1705077042030,-500.0,0.00022465,2]
[311395809,1705077042041,-700.41,0.00022465,2]
[311395811,1705077042049,-500.0,0.00022465,2]
[311395813,1705077042059,-500.0,0.00022465,2]
[311395815,1705077042068,-536.48,0.00022465,2]
[311395817,1705077042076,-500.0,0.00022465,2]
[311395819,1705077042086,-500.0,0.00022465,2]
[311395821,1705077042095,-500.0,0.00022465,2]
[311395823,1705077042104,-500.0,0.00022465,2]
[311395825,1705077042113,-2926.2,0.00022465,2]
[311395827,1705077042122,-500.0,0.00022465,2]
[311395829,1705077042131,-500.0,0.00022465,2]
[311395831,1705077042142,-1082.8,0.00022465,2]
[311395833,1705077042151,-580.37,0.00022465,2]
[311395835,1705077042161,-544.94475698,0.00022465,2]
[311395837,1705077042170,-6480.9,0.00022465,2]
[311395839,1705077042180,-500.0,0.00022465,2]
[311395840,1705077042189,-500.0,0.00022465,2]
[311395842,1705077042198,-500.0,0.00022738,2]
[311395844,1705077042207,-500.0,0.00022738,2]
[311395846,1705077042216,-500.0,0.00022738,2]
[311395847,1705077042226,-500.0,0.00022738,2]
[311395849,1705077042235,-500.0,0.00022738,2]
[311395851,1705077042244,-500.0,0.00022738,2]
[311395853,1705077042254,-1131.75,0.00022738,2]
[311395854,1705077042263,-500.0,0.00022738,2]
[311395856,1705077042272,-500.0,0.00022738,2]
[311395858,1705077042282,-500.0,0.00022738,2]
[311395860,1705077042291,-234.96184003,0.00022738,2]
[311395861,1705077042300,-500.0,0.00022738,2]
[311395862,1705077042309,-504.3,0.00022738,2]
[311395863,1705077042318,-562.58,0.00022738,2]
[311395865,1705077042327,-500.0,0.00022738,2]
[311395867,1705077042335,-500.0,0.00022738,2]
[311395869,1705077042344,-500.0,0.00022738,2]
[311395872,1705077042354,-500.0,0.00022739,2]
[311395874,1705077042364,-500.0,0.00022739,2]
[311395877,1705077042374,-500.0,0.00022739,2]
[311395879,1705077042386,-349.7742751,0.00022739,2]
[311395881,1705077042395,-500.0,0.00022739,2]
[311395883,1705077042404,-500.0,0.00022739,2]
[311395885,1705077042413,-473.57717789,0.00022739,2]
[311395887,1705077042423,-500.0,0.00022739,2]
[311395889,1705077042431,-500.0,0.00022739,2]
[311395891,1705077042440,-500.0,0.00022739,2]
[311395893,1705077042449,-500.0,0.00022739,2]
[311395895,1705077042458,-500.0,0.00022739,2]
[311395897,1705077042468,-616.66,0.00022739,2]
[311395899,1705077042478,-500.0,0.00022739,2]
[311395901,1705077042488,-700.41,0.00022739,2]
[311395903,1705077042502,-500.0,0.00022739,2]
[311395904,1705077042511,-536.48,0.00022739,2]
[311395906,1705077042520,-419.38280937,0.00022739,2]
[311395908,1705077042528,-500.0,0.00022739,2]
[311395910,1705077042538,-2926.2,0.00022739,2]
[311395912,1705077042548,-500.0,0.00022739,2]
[311395914,1705077042557,-500.0,0.00022739,2]
[311395917,1705077042572,-1082.8,0.00022739,2]
[311395919,1705077042582,-580.37,0.00022739,2]
[311395921,1705077042596,-6480.9,0.00022739,2]
[311395923,1705077042608,-500.0,0.00022739,2]
[311395925,1705077042617,-500.0,0.00022739,2]
[311395927,1705077042625,-213.64601716,0.0002282,2]
[311395929,1705077042634,-166.666666,0.00022944,2]
[311395931,1705077042644,-2093.76186828,0.00023,2]
[311395933,1705077042653,-500.0,0.00023012,2]
[311395935,1705077042663,-500.0,0.00023012,2]
[311395937,1705077042672,-500.0,0.00023012,2]
[311395939,1705077042681,-1131.75,0.00023012,2]
[311395940,1705077042691,-500.0,0.00023012,2]
[311395942,1705077042700,-500.0,0.00023012,2]
[311395945,1705077042709,-500.0,0.00023012,2]
[311395946,1705077042718,-504.3,0.00023012,2]
[311395948,1705077042727,-562.58,0.00023012,2]
[311395951,1705077042737,-500.0,0.00023012,2]
[311395953,1705077042746,-500.0,0.00023013,2]
[311395954,1705077042755,-500.0,0.00023013,2]
[311395956,1705077042764,-500.0,0.00023013,2]
[311395958,1705077042773,-500.0,0.00023013,2]
[311395961,1705077042783,-500.0,0.00023013,2]
[311395963,1705077042793,-405.14456047,0.00023013,2]
[311395965,1705077042802,-500.0,0.00023013,2]
[311395967,1705077042810,-500.0,0.00023013,2]
[311395968,1705077042820,-500.0,0.00023013,2]
[311395971,1705077042829,-616.66,0.00023013,2]
[311395973,1705077042839,-500.0,0.00023013,2]
[311395974,1705077042848,-700.41,0.00023013,2]
[311395976,1705077042857,-189.0782262,0.00023013,2]
[311395979,1705077042866,-536.48,0.00023013,2]
[311395980,1705077042875,-2926.2,0.00023013,2]
[311395982,1705077042885,-500.0,0.00023013,2]
[311395985,1705077042897,-500.0,0.00023013,2]
[311395987,1705077042907,-1082.8,0.00023013,2]
[311395989,1705077042915,-580.37,0.00023013,2]
[311395991,1705077042924,-6480.9,0.00023013,2]
[311395993,1705077042933,-500.0,0.00023013,2]
[311395995,1705077042942,-500.0,0.00023013,2]
[311395997,1705077042952,-500.0,0.00023286,2]
[311395999,1705077042961,-500.0,0.00023286,2]
[311396001,1705077042970,-500.0,0.00023286,2]
[311396003,1705077042979,-500.0,0.00023286,2]
[311396005,1705077042988,-500.0,0.00023286,2]
[311396007,1705077042997,-168.28933158,0.00023286,2]
[311396009,1705077043006,-502.61811935,0.00023286,2]
[311396011,1705077043015,-500.0,0.00023286,2]
[311396012,1705077043024,-500.0,0.00023286,2]
[311396014,1705077043033,-500.0,0.00023286,2]
[311396016,1705077043042,-504.46218806,0.00023286,2]
[311396018,1705077043051,-500.0,0.00023286,2]
[311396020,1705077043061,-500.0,0.00023286,2]
[311396022,1705077043070,-500.0,0.00023286,2]
[311396024,1705077043079,-500.0,0.00023286,2]
[311396026,1705077043088,-500.0,0.00023286,2]
[311396028,1705077043098,-500.0,0.00023286,2]
[311396030,1705077043107,-500.0,0.00023286,2]
[311396032,1705077043116,-500.0,0.00023286,2]
[311396034,1705077043125,-200.31408391,0.00023286,2]
[311396036,1705077043134,-157.5038137,0.00023286,2]
[311396038,1705077043146,-500.0,0.00023286,2]
[311396040,1705077043157,-600.97778314,0.00023286,2]
[311396042,1705077043166,-500.0,0.00023286,2]
[311396044,1705077043174,-500.0,0.00023286,2]
[311396046,1705077043183,-500.0,0.00023286,2]
[311396048,1705077043192,-500.0,0.00023286,2]
[311396050,1705077043201,-500.0,0.00023286,2]
[311396052,1705077043210,-500.0,0.00023286,2]
[311396054,1705077043219,-500.0,0.00023286,2]
[311396056,1705077043228,-468.15575133,0.00023286,2]
[311396058,1705077043237,-500.0,0.00023286,2]
[311396060,1705077043246,-501.62499809,0.00023286,2]
[311396062,1705077043255,-294.44703932,0.00023286,2]
[311396064,1705077043264,-503.17641592,0.00023286,2]
[311396066,1705077043273,-500.0,0.00023286,2]
[311396068,1705077043282,-548.17159399,0.00023286,2]
[311396070,1705077043291,-500.0,0.00023286,2]
[311396072,1705077043302,-500.0,0.00023286,2]
[311396074,1705077043311,-500.0,0.00023286,2]
[311396076,1705077043320,-361.23136847,0.00023286,2]
[311396086,1705077043407,-500.0,0.00023286,2]
[311396088,1705077043416,-500.0,0.00023286,2]
[311396090,1705077043425,-500.0,0.00023286,2]
[311396093,1705077043435,-500.0,0.00023286,2]
[311396096,1705077043444,-500.0,0.00023286,2]
[311396099,1705077043453,-500.0,0.00023286,2]
[311396101,1705077043462,-500.0,0.00023286,2]
[311396103,1705077043471,-500.0,0.00023286,2]
[311396105,1705077043481,-500.0,0.00023286,2]
[311396107,1705077043490,-500.0,0.00023286,2]
[311396109,1705077043503,-500.0,0.00023286,2]
[311396111,1705077043512,-1131.75,0.00023286,2]
[311396113,1705077043521,-503.40959148,0.00023286,2]
[311396115,1705077043531,-500.0,0.00023286,2]
[311396117,1705077043540,-500.0,0.00023286,2]
[311396119,1705077043550,-500.0,0.00023286,2]
[311396121,1705077043560,-500.0,0.00023286,2]
[311396123,1705077043569,-504.3,0.00023286,2]
[311396125,1705077043578,-562.58,0.00023286,2]
[311396127,1705077043587,-500.0,0.00023286,2]
[311396129,1705077043596,-500.0,0.00023286,2]
[311396131,1705077043605,-500.0,0.00023286,2]
[311396133,1705077043615,-1526.16,0.00023286,2]
[311396135,1705077043624,-500.0,0.00023286,2]
[311396138,1705077043634,-787.58,0.00023286,2]
[311396139,1705077043646,-500.0,0.00023286,2]
[311396141,1705077043655,-500.0,0.00023287,2]
[311396144,1705077043665,-500.0,0.00023287,2]
[311396145,1705077043673,-500.0,0.00023287,2]
[311396148,1705077043682,-500.0,0.00023287,2]
[311396149,1705077043691,-500.0,0.00023287,2]
[311396151,1705077043700,-616.66,0.00023287,2]
[311396153,1705077043709,-700.41,0.00023287,2]
[311396155,1705077043718,-536.48,0.00023287,2]
[311396158,1705077043728,-2926.2,0.00023287,2]
[311396159,1705077043736,-500.0,0.00023287,2]
[311396162,1705077043746,-500.0,0.00023287,2]
[311396164,1705077043755,-1082.8,0.00023287,2]
[311396166,1705077043764,-580.37,0.00023287,2]
[311396168,1705077043773,-6480.9,0.00023287,2]
[311396169,1705077043781,-500.0,0.00023287,2]
[311396172,1705077043791,-500.0,0.00023287,2]
[311396174,1705077043800,-166.666666,0.00023456,2]
[311396175,1705077043809,-500.0,0.0002356,2]
[311396177,1705077043818,-500.0,0.0002356,2]
[311396179,1705077043827,-502.13157992,0.0002356,2]
[311396181,1705077043837,-500.0,0.0002356,2]
[311396184,1705077043846,-500.0,0.0002356,2]
[311396186,1705077043859,-503.86688486,0.0002356,2]
[311396188,1705077043868,-500.0,0.0002356,2]
[311396190,1705077043877,-500.0,0.0002356,2]
[311396192,1705077043886,-500.0,0.0002356,2]
[311396194,1705077043897,-500.0,0.0002356,2]
[311396196,1705077043907,-544.9052223,0.0002356,2]
[311396198,1705077043916,-500.0,0.0002356,2]
[311396200,1705077043925,-502.14628969,0.0002356,2]
[311396202,1705077043934,-500.0,0.0002356,2]
[311396204,1705077043943,-500.0,0.0002356,2]
[311396206,1705077043952,-500.0,0.0002356,2]
[311396208,1705077043961,-500.0,0.0002356,2]